fUSD/lending_fUSD_20251220
["ID","MTS","AMOUNT","RATE_DAILY","PERIOD"]
[399237815,1766196649180,-500.0,0.00016438,2]
[399237816,1766196649190,-533.23613812,0.00016438,2]
[399237817,1766196649199,-533.23613812,0.00016438,2]
[399237818,1766196649208,-533.23613812,0.00016438,2]
[399237819,1766196649218,-533.23613812,0.00016438,2]
[399237820,1766196649227,-533.23613812,0.00016438,2]
[399237821,1766196649236,-533.23613812,0.00016438,2]
[399237822,1766196649245,-533.23613812,0.00016438,2]
[399237823,1766196649256,-533.23613812,0.00016438,2]
[399237824,1766196649270,-533.23613812,0.00016438,2]
[399237825,1766196649279,-533.23613812,0.00016438,2]
[399237826,1766196649288,-533.23613812,0.00016438,2]
[399237827,1766196649298,-533.23613812,0.00016438,2]
[399237828,1766196649310,-533.23613812,0.00016438,2]
[399237829,1766196649320,-533.23613812,0.00016438,2]
[399237830,1766196649329,-533.23613812,0.00016438,2]
[399237831,1766196649339,-533.23613812,0.00016438,2]
[399237832,1766196649348,-533.23613812,0.00016438,2]
[399237833,1766196649357,-533.23613812,0.00016438,2]
[399237834,1766196649367,-533.23613812,0.00016438,2]
[399237835,1766196649375,-533.23613812,0.00016438,2]
[399237836,1766196649384,-533.23613812,0.00016438,2]
[399237837,1766196649393,-533.23613812,0.00016438,2]
[399237838,1766196649402,-533.23613812,0.00016438,2]
[399237839,1766196649412,-533.23613812,0.00016438,2]
[399237840,1766196649421,-533.23613812,0.00016438,2]
[399237841,1766196649430,-533.23613812,0.00016438,2]
[399237842,1766196649439,-533.23613812,0.00016438,2]
[399237843,1766196649447,-533.23613812,0.00016438,2]
[399237844,1766196649457,-533.23613819,0.00016438,2]
[399237845,1766196649466,-533.23613819,0.00016438,2]
[399237846,1766196649475,-150.39,0.00016438,2]
[399237847,1766196649484,-150.06,0.00016438,2]
[399237848,1766196649493,-800.62641417,0.00016438,2]
[399237849,1766196649502,-164.42,0.0001644,2]
[399237850,1766196649511,-164.42,0.0001644,2]
[399237851,1766196649520,-151.0,0.00016447,2]
[399237852,1766196649529,-151.0,0.00016447,2]
[399237853,1766196649538,-151.0,0.00016447,2]
[399237854,1766196649547,-151.0,0.00016447,2]
[399237855,1766196649556,-12861.40719154,0.0001646,2]
[399237856,1766196649565,-3109.34995974,0.00016512,2]
[399237857,1766196649575,-3000.0,0.00016512,2]
[399237858,1766196649587,-268.48828964,0.0001655,2]
[399237859,1766196649598,-500.0,0.00016574,2]
[399237860,1766196649608,-370.18922892,0.00016574,2]
[399237861,1766196649618,-201.41286545,0.00016574,2]
[399237862,1766196649629,-164.23762974,0.00016574,2]
[399237863,1766196649638,-500.0,0.00016575,2]
[399237864,1766196649647,-1000.0,0.000166,2]
[399237865,1766196649655,-150.0,0.00016647,2]
[399237866,1766196649664,-12375.00024842,0.0001666,2]
[399237867,1766196649673,-500.0,0.00016711,2]
[399237868,1766196649683,-500.0,0.00016712,2]
[399237869,1766196649694,-1614.17,0.00016712,2]
[399237870,1766196649704,-2734.17,0.00016741,2]
[399237871,1766196649714,-663.93287602,0.00016748,2]
[399237872,1766196649724,-172.24,0.0001675,2]
[399237873,1766196649735,-500.0,0.0001675,2]
[399237874,1766196649746,-200.0,0.0001675,2]
[399237875,1766196649755,-1000.0,0.000168,2]
[399237876,1766196649764,-500.0,0.00016847,2]
[399237877,1766196649773,-500.0,0.00016847,2]
[399237878,1766196649783,-500.0,0.00016847,2]
[399237879,1766196649791,-510.77645617,0.00016847,2]
[399237880,1766196649800,-500.0,0.00016847,2]
[399237881,1766196649810,-506.44561835,0.00016847,2]
[399237882,1766196649819,-500.0,0.00016847,2]
[399237883,1766196649828,-502.26583075,0.00016847,2]
[399237884,1766196649837,-500.0,0.00016848,2]
[399237885,1766196649847,-1000.87754816,0.00016848,2]
[399237886,1766196649856,-500.65137842,0.00016848,2]
[399237887,1766196649865,-1000.0,0.00016848,2]
[399237888,1766196649875,-1001.13256122,0.00016848,2]
[399237889,1766196649884,-1001.19540644,0.00016848,2]
[399237890,1766196649893,-1001.0881382,0.00016848,2]
[399237891,1766196649903,-1001.31913615,0.00016848,2]
[399237892,1766196649912,-1001.0574546,0.00016848,2]
[399237893,1766196649921,-1000.0,0.00016848,2]
[399237894,1766196649930,-1000.76703223,0.00016848,2]
[399237895,1766196650055,-179.47316237,0.00016848,2]
[399237896,1766196650064,-1000.0,0.00016848,2]
[399237897,1766196650074,-1001.39291005,0.00016848,2]
[399237898,1766196650084,-1000.0,0.00016848,2]
[399237899,1766196650093,-1000.0,0.00016848,2]
[399237900,1766196650103,-1000.91698308,0.00016848,2]
[399237901,1766196650112,-1001.94292641,0.00016848,2]
[399237902,1766196650121,-1000.87355102,0.00016848,2]
[399237903,1766196650130,-221.90485079,0.00016848,2]
[399237904,1766196650139,-1001.04801864,0.00016848,2]
[399237905,1766196650149,-1001.01249642,0.00016848,2]
[399237906,1766196650158,-1002.26047729,0.00016848,2]
[399237907,1766196650168,-1001.02020729,0.00016848,2]
[399237908,1766196650178,-500.58632088,0.00016848,2]
[399237909,1766196650188,-501.13881872,0.00016848,2]
[399237910,1766196650198,-1001.62933113,0.00016848,2]
[399237911,1766196650207,-1000.96314567,0.00016848,2]
[399237912,1766196650217,-1000.83354161,0.00016848,2]
[399237913,1766196650227,-1001.82577211,0.00016848,2]
[399237914,1766196650236,-1000.9465121,0.00016848,2]
[399237915,1766196650246,-1001.04078122,0.00016848,2]
[399237916,1766196650256,-998.88830841,0.00016848,2]
[399237917,1766196650268,-1000.866265,0.00016848,2]
[399237918,1766196650278,-1001.55316658,0.00016848,2]
[399237919,1766196650287,-1001.1215833,0.00016848,2]
[399237920,1766196650297,-1000.0,0.00016848,2]
[399237921,1766196650306,-1000.0,0.00016848,2]
[399237922,1766196650315,-1004.81720167,0.00016848,2]
[399237923,1766196650325,-1000.0,0.00016848,2]
[399237924,1766196650335,-500.0,0.00016849,2]
[399237925,1766196650344,-150.73308633,0.0001686,2]
[399237926,1766196650353,-200.0,0.00016863,2]
[399237927,1766196650363,-200.0,0.00016864,2]
[399237928,1766196650372,-25000.0,0.00016874,3]
[399237929,1766196650381,-150.73308633,0.0001688,2]
[399237930,1766196650390,-25000.0,0.00016882,3]
[399237931,1766196650399,-25000.0,0.00016891,3]
[399237932,1766196650408,-500.0,0.00016899,2]
[399237933,1766196650417,-153.83,0.00016899,2]
[399237934,1766196650426,-6773.0744,0.000169,2]
[399237935,1766196650436,-25000.0,0.000169,3]
[399237936,1766196650445,-318.11736539,0.000169,2]
[399237937,1766196650454,-153.5898,0.000169,2]
[399237938,1766196650463,-151.0,0.000169,2]
[399237939,1766196650472,-151.0,0.000169,2]
[399237940,1766196650481,-151.0,0.000169,2]
[399237941,1766196650490,-151.0,0.000169,2]
[399237942,1766196650499,-151.0,0.000169,2]
[399237943,1766196650508,-695.34142668,0.000169,3]
[399237944,1766196650517,-268.48828964,0.000169,2]
[399237945,1766196650527,-12861.40719154,0.000169,2]
[399237946,1766196650536,-821.26193203,0.000169,2]
[399237947,1766196650545,-150.73308633,0.000169,2]
[399237948,1766196650553,-1014.85378629,0.000169,2]
[399237949,1766196650562,-539.9834266,0.000169,2]
[399237950,1766196650572,-632.50745291,0.000169,2]
[399237951,1766196650581,-151.0,0.000169,2]
[399237952,1766196650590,-270.0,0.0001696,2]
[399237953,1766196650599,-204.96960909,0.00016972,2]
[399237954,1766196650608,-150.10981544,0.00016973,2]
[399237955,1766196650618,-150.09235231,0.00016973,2]
[399237956,1766196650627,-500.0,0.00016973,2]
[399237957,1766196650636,-150.0,0.00016973,2]
[399237958,1766196650645,-500.0,0.00016979,2]
[399237959,1766196650655,-500.0,0.00016979,2]
[399237960,1766196650663,-500.0,0.00016979,2]
[399237961,1766196650673,-500.0,0.00016979,2]
[399237962,1766196650682,-500.0,0.00016979,2]
[399237963,1766196650691,-510.42805482,0.00016979,2]
[399237964,1766196650700,-500.0,0.00016979,2]
[399237965,1766196650709,-500.0,0.00016979,2]
[399237966,1766196650718,-500.0,0.00016979,2]
[399237967,1766196650727,-511.85238157,0.00016979,2]
[399237968,1766196650736,-500.0,0.00016985,2]
[399237969,1766196650745,-500.0,0.00016986,2]
[399237970,1766196650755,-1614.17,0.00016986,2]
[399237971,1766196650764,-164.76564826,0.00016986,2]
[399237972,1766196650774,-868.13960377,0.0001699,2]
[399237973,1766196650783,-868.13960377,0.0001699,2]
[399237974,1766196650792,-1500.0,0.00016998,2]
[399237975,1766196650801,-1500.0,0.00016998,2]
[399237976,1766196650811,-1527.47643038,0.00016998,2]
[399237977,1766196650820,-151.0,0.00016998,2]
[399237978,1766196650830,-151.0,0.00016998,2]
[399237979,1766196650839,-151.0,0.00016998,2]
[399237980,1766196650849,-151.0,0.00016998,2]
[399237981,1766196650859,-1019.77444314,0.00016999,5]
[399237982,1766196650868,-1019.77444314,0.00016999,5]
[399237983,1766196650877,-1019.77444314,0.00016999,5]
[399237984,1766196650886,-1019.77444314,0.00016999,5]
[399237985,1766196650896,-1019.77444314,0.00016999,5]
[399237986,1766196650905,-1019.77444313,0.00016999,5]
[399237987,1766196650914,-500.0,0.00016999,2]
[399237988,1766196650923,-500.0,0.00016999,2]
[399237989,1766196650932,-500.0,0.00016999,2]
[399237990,1766196650942,-500.0,0.00016999,2]
[399237991,1766196650951,-244.49443283,0.00016999,2]
[399237992,1766196650960,-500.0,0.00016999,2]
[399237993,1766196650970,-500.0,0.00016999,2]
[399237994,1766196650979,-500.0,0.00016999,2]
[399237995,1766196650988,-500.0,0.00016999,2]
[399237996,1766196650997,-500.0,0.00016999,2]
[399237997,1766196651007,-500.0,0.00016999,2]
[399237998,1766196651016,-500.0,0.00016999,2]
[399237999,1766196651024,-500.0,0.00016999,2]
[399238000,1766196651034,-517.41741792,0.00016999,2]
[399238001,1766196651043,-352.29799785,0.00016999,2]
[399238002,1766196651052,-500.0,0.00016999,2]
[399238003,1766196651061,-500.0,0.00016999,2]
[399238004,1766196651070,-500.0,0.00016999,2]
[399238005,1766196651079,-500.0,0.00016999,2]
[399238006,1766196651088,-500.0,0.00016999,2]
[399238007,1766196651097,-500.0,0.00016999,2]
[399238008,1766196651106,-500.0,0.00016999,2]
[399238009,1766196651115,-500.0,0.00016999,2]
[399238010,1766196651124,-500.0,0.00016999,2]
[399238011,1766196651133,-500.0,0.00016999,2]
[399238012,1766196651143,-511.45159126,0.00016999,2]
[399238013,1766196651152,-500.0,0.00016999,2]
[399238014,1766196651162,-500.0,0.00016999,2]
[399238015,1766196651171,-500.0,0.00016999,2]
[399238016,1766196651180,-500.0,0.00016999,2]
[399238017,1766196651189,-500.0,0.00016999,2]
[399238018,1766196651198,-500.0,0.00016999,2]
[399238019,1766196651207,-500.0,0.00016999,2]
[399238020,1766196651216,-500.0,0.00016999,2]
[399238021,1766196651225,-500.0,0.00016999,2]
[399238022,1766196651234,-500.0,0.00016999,2]
[399238023,1766196651243,-500.0,0.00016999,2]
[399238024,1766196651252,-500.0,0.00016999,2]
[399238025,1766196651266,-541.48637229,0.00016999,2]
[399238026,1766196651275,-500.0,0.00016999,2]
[399238027,1766196651284,-500.0,0.00016999,2]
[399238028,1766196651294,-500.0,0.00016999,2]
[399238029,1766196651304,-537.03290161,0.00016999,2]
[399238030,1766196651314,-500.0,0.00016999,2]
[399238031,1766196651323,-218.06651847,0.00016999,2]
[399238032,1766196651333,-308.45911544,0.00016999,2]
[399238033,1766196651342,-500.0,0.00016999,2]
[399238034,1766196651352,-500.0,0.00016999,2]
[399238035,1766196651360,-500.0,0.00016999,2]
[399238036,1766196651370,-500.0,0.00016999,2]
[399238037,1766196651379,-500.0,0.00016999,2]
[399238038,1766196651388,-500.0,0.00016999,2]
[399238039,1766196651398,-500.0,0.00016999,2]
[399238040,1766196651407,-500.0,0.00016999,2]
[399238041,1766196651416,-500.0,0.00016999,2]
[399238042,1766196651425,-592.36853989,0.00016999,2]
[399238043,1766196651434,-1155608.27894396,0.00017,2]
[399238044,1766196651694,-653.7286811,0.00017,2]
[399238045,1766196651706,-926.039998,0.00017,2]
[399238046,1766196651718,-591.11871023,0.00017,2]
[399238047,1766196651729,-291.71752767,0.00017,2]
[399238048,1766196651806,-406.95691,0.0001274,2]
[399238049,1766196652696,-2032.52294606,0.0001265,2]
[399238050,1766196652709,-259.22916117,0.0001265,2]
[399238051,1766196652765,187.8239734,0.00011998,2]
[399238052,1766196652788,-266.80887864,0.0001265,2]
[399238053,1766196652803,-1540.55831413,0.0001265,2]
[399238054,1766196652812,-349.04309,0.0001274,2]
[399238055,1766196652822,-207.37390276,0.00012768,2]
[399238056,1766196652831,-756.0,0.00012877,2]
[399238057,1766196652840,-756.0,0.00013014,2]
[399238058,1766196652849,-517.49835571,0.00013151,2]
[399238059,1766196652861,-238.50164429,0.00013151,2]
[399238060,1766196652871,-407.0451804,0.00013288,2]
[399238061,1766196652882,-348.9548196,0.00013288,2]
[399238062,1766196652891,-97.58551962,0.00013425,2]
[399238063,1766196682211,2500.0,0.00011984,2]
[399238070,1766196724961,166.7868,0.00011984,2]
[399238074,1766196749482,500.0,0.00011981,2]
[399238075,1766196755866,1224.67675897,0.00011984,2]
[399238076,1766196755888,10000.01,0.00011984,2]
[399238077,1766196755909,10000.01,0.00011984,2]
[399238078,1766196755930,10000.01,0.00011984,2]
[399238079,1766196755952,2266.70004103,0.00011984,2]
[399238082,1766196770819,7733.30995897,0.00011984,2]
[399238083,1766196770847,10000.01,0.00011984,2]
[399238084,1766196770881,10000.01,0.00011984,2]
[399238085,1766196770910,10000.01,0.00011984,2]
[399238086,1766196770936,10000.01,0.00011984,2]
[399238087,1766196770962,10000.01,0.00011984,2]
[399238089,1766196805197,-14.47350169,0.00011984,2]
[399238090,1766196810832,-10000.01,0.00011984,2]
[399238091,1766196811001,-10000.01,0.00011984,2]
[399238092,1766196811116,-10000.01,0.00011984,2]
[399238093,1766196811222,-10000.01,0.00011984,2]
[399238094,1766196811349,-10000.01,0.00011984,2]
[399238095,1766196811457,-10000.01,0.00011984,2]
[399238096,1766196811603,-10000.01,0.00011984,2]
[399238097,1766196811731,-10000.01,0.00011984,2]
[399238098,1766196811833,-10000.01,0.00011984,2]
[399238099,1766196823745,-10000.01,0.00011984,2]
[399238100,1766196823844,-10000.01,0.00011984,2]
[399238101,1766196823952,-10000.01,0.00011984,2]
[399238102,1766196824077,-10000.01,0.00011984,2]
[399238103,1766196824213,-10000.01,0.00011984,2]
[399238104,1766196824323,-10000.01,0.00011984,2]
[399238105,1766196824422,-10000.01,0.00011984,2]
[399238106,1766196824542,-10000.01,0.00011984,2]
[399238107,1766196824707,-10000.01,0.00011984,2]
[399238109,1766196839083,-10000.01,0.00011984,2]
[399238110,1766196839193,-10000.01,0.00011984,2]
[399238111,1766196839351,-10000.01,0.00011984,2]
[399238112,1766196839585,-10000.01,0.00011984,2]
[399238113,1766196839779,-10000.01,0.00011984,2]
[399238114,1766196839988,-10000.01,0.00011984,2]
[399238115,1766196840127,-10000.01,0.00011984,2]
[399238116,1766196840273,-10000.01,0.00011984,2]
[399238117,1766196840379,-10000.01,0.00011984,2]
[399238118,1766196840667,-10000.01,0.00011984,2]
[399238120,1766196855796,-300.0,0.00011983,2]
[399238121,1766196863788,-250.0,0.00011984,2]
[399238122,1766196863823,-9500.01,0.00011984,2]
[399238123,1766196864221,-10000.01,0.00011984,2]
[399238124,1766196864340,-10000.01,0.00011984,2]
[399238125,1766196864438,-10000.01,0.00011984,2]
[399238126,1766196864541,-10000.01,0.00011984,2]
[399238127,1766196864641,-10000.01,0.00011984,2]
[399238128,1766196864750,-10000.01,0.00011984,2]
[399238129,1766196865036,-10000.01,0.00011984,2]
[399238130,1766196865175,-10000.01,0.00011984,2]
[399238131,1766196883302,-781.98194758,0.00011884,2]
[399238132,1766196883348,-443.42648802,0.00011983,2]
[399238133,1766196883396,-7549.1931288,0.00011984,2]
[399238134,1766196883419,-10000.01,0.00011984,2]
[399238135,1766196883555,-10000.01,0.00011984,2]
[399238136,1766196883695,-10000.01,0.00011984,2]
[399238137,1766196883818,-10000.01,0.00011984,2]
[399238138,1766196883946,-10000.01,0.00011984,2]
[399238139,1766196884055,-10000.01,0.00011984,2]
[399238140,1766196884212,-10000.01,0.00011984,2]
[399238141,1766196884330,-10000.01,0.00011984,2]
[399238142,1766196905286,-500.0,0.00011981,2]
[399238143,1766196905320,-300.0,0.00011983,2]
[399238144,1766196905350,-1200.0,0.00011983,2]
[399238145,1766196905381,-300.0,0.00011983,2]
[399238146,1766196905410,-150.0,0.00011983,2]
[399238147,1766196905511,-5100.01,0.00011984,2]
[399238148,1766196905537,-10000.01,0.00011984,2]
[399238149,1766196905562,-10000.01,0.00011984,2]
[399238150,1766196905701,-10000.01,0.00011984,2]
[399238151,1766196905881,-10000.01,0.00011984,2]
[399238152,1766196906058,-10000.01,0.00011984,2]
[399238153,1766196906234,-10000.01,0.00011984,2]
[399238154,1766196906513,-10000.01,0.00011984,2]
[399238155,1766196906646,-10000.01,0.00011984,2]
[399238156,1766196906820,-10000.01,0.00011984,2]
[399238157,1766196950505,-222.09318352,0.00011983,2]
[399238158,1766196950552,-9555.82363296,0.00011984,2]
[399238159,1766196950679,-10000.01,0.00011984,2]
[399238160,1766196950799,-10000.01,0.00011984,2]
[399238161,1766196950929,-10000.01,0.00011984,2]
[399238162,1766196951063,-10000.01,0.00011984,2]
[399238163,1766196951198,-10000.01,0.00011984,2]
[399238165,1766197048511,500.0,0.00011884,2]
[399238166,1766197097587,9500.01,0.00011884,2]
[399238167,1766197097608,10000.01,0.00011884,2]
[399238168,1766197097630,9933.4738,0.00011884,2]
[399238169,1766197103789,66.5362,0.00011884,2]
[399238170,1766197103811,2433.4638,0.00011884,2]
[399238171,1766197118009,7566.5462,0.00011884,2]
[399238172,1766197118032,10000.01,0.00011884,2]
[399238173,1766197118056,4678.31330933,0.00011884,2]
[399238174,1766197160806,1332.41876971,0.00011884,2]
[399238175,1766197177089,500.0,0.00011884,2]
[399238176,1766197246953,3489.27792096,0.00011884,2]
[399238177,1766197246976,10000.01,0.00011884,2]
[399238178,1766197246999,10000.01,0.00011884,2]
[399238179,1766197247024,10000.01,0.00011884,2]
[399238180,1766197247046,10000.01,0.00011884,2]
[399238181,1766197247070,10000.01,0.00011884,2]
[399238182,1766197247092,10000.01,0.00011884,2]
[399238184,1766197327090,302.06,0.00011781,2]
[399238187,1766197578232,167.22,9.438e-05,2]
[399238188,1766197602172,664.75175991,0.0002,30]
[399238189,1766197605583,200.0,0.00011736,2]
[399238191,1766197790855,9330.73,0.00011784,2]
[399238192,1766197790881,10000.01,0.00011784,2]
[399238193,1766197790905,10000.01,0.00011784,2]
[399238194,1766197790928,10000.01,0.00011784,2]
[399238195,1766197790952,10000.01,0.00011784,2]
[399238196,1766197790980,10000.01,0.00011784,2]
[399238197,1766197791004,10000.01,0.00011784,2]
[399238198,1766197791028,10000.01,0.00011784,2]
[399238199,1766197791052,10000.01,0.00011784,2]
[399238200,1766197791076,10000.01,0.00011784,2]
[399238217,1766197823941,-3407.53,0.000117,2]
[399238219,1766197823971,-195.0,0.00011741,2]
[399238220,1766197824001,-300.0,0.00011783,2]
[399238221,1766197824031,-994.95,0.00011783,2]
[399238222,1766197824232,-205.05,0.00011783,2]
[399238223,1766197824262,-150.0,0.00011783,2]
[399238233,1766197831406,-67644.02525734,0.00011784,2]
[399238243,1766197837485,-833025.15474266,0.00011784,2]
[399238244,1766197837494,-25305.2771,0.00011877,2]
[399238245,1766197837503,-1200.0,0.00011882,2]
[399238246,1766197837513,-441.2294,0.00011883,2]
[399238247,1766197837522,-500.0,0.00011883,2]
[399238248,1766197837532,-500.0,0.00011883,2]
[399238249,1766197837542,-500.0,0.00011883,2]
[399238250,1766197837551,-500.0,0.00011883,2]
[399238251,1766197837560,-500.0,0.00011883,2]
[399238252,1766197837569,-500.0,0.00011883,2]
[399238253,1766197837579,-500.0,0.00011883,2]
[399238254,1766197837588,-500.0,0.00011883,2]
[399238255,1766197837598,-500.0,0.00011883,2]
[399238256,1766197837607,-500.0,0.00011883,2]
[399238257,1766197837616,-500.0,0.00011883,2]
[399238258,1766197837626,-500.0,0.00011883,2]
[399238259,1766197837635,-500.0,0.00011883,2]
[399238260,1766197837644,-500.0,0.00011883,2]
[399238261,1766197837654,-500.0,0.00011883,2]
[399238262,1766197837664,-500.0,0.00011883,2]
[399238263,1766197837674,-500.0,0.00011883,2]
[399238264,1766197837683,-500.0,0.00011883,2]
[399238265,1766197837692,-152.8704308,0.00011883,2]
[399238266,1766197837701,-500.0,0.00011883,2]
[399238267,1766197837711,-500.0,0.00011883,2]
[399238268,1766197837721,-500.0,0.00011883,2]
[399238269,1766197837730,-500.0,0.00011883,2]
[399238270,1766197837739,-500.0,0.00011883,2]
[399238271,1766197837750,-500.0,0.00011883,2]
[399238272,1766197837762,-500.0,0.00011883,2]
[399238273,1766197837771,-500.0,0.00011883,2]
[399238274,1766197837780,-500.0,0.00011883,2]
[399238275,1766197837789,-500.0,0.00011883,2]
[399238276,1766197837800,-500.0,0.00011883,2]
[399238277,1766197837809,-500.0,0.00011883,2]
[399238278,1766197837818,-500.0,0.00011883,2]
[399238279,1766197837828,-500.0,0.00011883,2]
[399238280,1766197837837,-500.0,0.00011883,2]
[399238281,1766197837846,-500.0,0.00011883,2]
[399238282,1766197837856,-500.0,0.00011883,2]
[399238283,1766197837865,-500.0,0.00011883,2]
[399238284,1766197837874,-500.0,0.00011883,2]
[399238285,1766197837883,-500.0,0.00011883,2]
[399238286,1766197837892,-500.0,0.00011883,2]
[399238287,1766197837900,-500.0,0.00011883,2]
[399238288,1766197837909,-500.0,0.00011883,2]
[399238289,1766197837918,-500.0,0.00011883,2]
[399238290,1766197837927,-500.0,0.00011883,2]
[399238291,1766197837936,-500.0,0.00011883,2]
[399238292,1766197837945,-500.0,0.00011883,2]
[399238293,1766197837955,-500.0,0.00011883,2]
[399238294,1766197837964,-500.0,0.00011883,2]
[399238295,1766197837972,-20020.38255846,0.00011884,2]
[399238296,1766197837981,-1165.86642347,0.00011884,2]
[399238297,1766197837990,-197.64230935,0.00011884,2]
[399238298,1766197837999,-2756.9178,0.00011884,2]
[399238299,1766197838008,-2500.0,0.00011884,2]
[399238300,1766197838017,-868.13960377,0.00011974,2]
[399238301,1766197838026,-465.86377007,0.00011976,2]
[399238302,1766197838036,-263.83074129,0.00011976,2]
[399238303,1766197838045,-200.0,0.00011977,2]
[399238304,1766197838054,-200.0,0.00011977,2]
[399238305,1766197838064,-500.0,0.00011977,2]
[399238306,1766197838073,-500.0,0.00011977,2]
[399238307,1766197838081,-500.0,0.00011977,2]
[399238308,1766197838091,-500.0,0.00011977,2]
[399238309,1766197838100,-500.0,0.00011977,2]
[399238310,1766197838110,-500.0,0.00011977,2]
[399238311,1766197838119,-500.0,0.00011977,2]
[399238312,1766197838129,-500.0,0.00011977,2]
[399238313,1766197838138,-500.0,0.00011977,2]
[399238314,1766197838148,-500.0,0.00011977,2]
[399238315,1766197838158,-500.0,0.00011977,2]
[399238316,1766197838168,-200.0,0.00011977,2]
[399238317,1766197838177,-151.0,0.00011977,2]
[399238318,1766197838186,-151.0,0.00011977,2]
[399238319,1766197838196,-151.0,0.00011977,2]
[399238320,1766197838205,-151.0,0.00011977,2]
[399238321,1766197838215,-151.0,0.00011977,2]
[399238322,1766197838225,-151.0,0.00011977,2]
[399238323,1766197838234,-500.0,0.00011977,2]
[399238324,1766197838243,-151.0,0.00011977,2]
[399238325,1766197838252,-500.0,0.00011977,2]
[399238326,1766197838262,-151.0,0.00011977,2]
[399238327,1766197838272,-500.0,0.00011977,2]
[399238328,1766197838281,-151.0,0.00011977,2]
[399238329,1766197838290,-500.0,0.00011977,2]
[399238330,1766197838300,-151.0,0.00011977,2]
[399238331,1766197838310,-500.0,0.00011977,2]
[399238332,1766197838319,-151.0,0.00011977,2]
[399238333,1766197838329,-500.0,0.00011977,2]
[399238334,1766197838339,-500.0,0.00011977,2]
[399238335,1766197838348,-500.0,0.00011977,2]
[399238336,1766197838357,-500.0,0.00011977,2]
[399238337,1766197838367,-500.0,0.00011977,2]
[399238338,1766197838385,-500.0,0.00011977,2]
[399238339,1766197838395,-500.0,0.00011977,2]
[399238340,1766197838404,-151.0,0.00011977,2]
[399238341,1766197838413,-151.0,0.00011977,2]
[399238342,1766197838422,-151.0,0.00011977,2]
[399238343,1766197838431,-151.0,0.00011977,2]
[399238344,1766197838441,-151.0,0.00011977,2]
[399238345,1766197838450,-151.0,0.00011977,2]
[399238346,1766197838459,-151.0,0.00011977,2]
[399238347,1766197838468,-151.0,0.00011977,2]
[399238348,1766197838477,-151.0,0.00011977,2]
[399238349,1766197838486,-151.0,0.00011977,2]
[399238350,1766197838495,-151.0,0.00011977,2]
[399238351,1766197838504,-151.0,0.00011977,2]
[399238352,1766197838514,-151.0,0.00011977,2]
[399238353,1766197838523,-151.0,0.00011977,2]
[399238354,1766197838533,-151.0,0.00011977,2]
[399238355,1766197838543,-151.0,0.00011977,2]
[399238356,1766197838552,-151.0,0.00011977,2]
[399238357,1766197838561,-151.0,0.00011977,2]
[399238358,1766197838571,-151.0,0.00011977,2]
[399238359,1766197838580,-151.0,0.00011977,2]
[399238360,1766197838589,-1728.39,0.00011983,2]
[399238361,1766197838599,-483039.8212157,0.00011984,2]
[399238362,1766197838608,-4227.317028,0.00011984,2]
[399238363,1766197838617,-1000.0,0.00011984,2]
[399238364,1766197838626,-7355.4462,0.00011984,2]
[399238365,1766197838635,-3240.0,0.00012141,2]
[399238366,1766197838644,-150.0,0.00012155,2]
[399238367,1766197838659,-500.0,0.00012157,2]
[399238368,1766197838679,-1728.39,0.00012257,2]